bitfinex-derivatives/quotes_ETHF0:USTF0_20230104
["timestamp","ask_amount","ask_price","bid_price","bid_amount"]
[1672831408344,1.601,1250.2,1250.1,2.99750776]
[1672831410658,1.6,1250.3,1250.1,6.98593133]
[1672831410866,1.6,1250.3,1250.1,3.98780607]
[1672831411077,1.6,1250.3,1250.2,1.19828858]
[1672831416337,1.6,1250.3,1250.1,2.78928858]
[1672831417177,1.6,1250.3,1250.2,1.19828858]
[1672831417388,1.6,1250.3,1250.1,2.78928858]
[1672831417913,1.6,1250.3,1250.2,1.19828858]
[1672831418123,1.6,1250.3,1250.1,2.78928858]
[1672831418542,1.6,1250.3,1250.2,1.19828858]
[1672831418752,1.6,1250.3,1250.1,2.78928858]
[1672831419903,1.6,1250.3,1250.2,1.19828858]
[1672831420644,4.6073,1250.3,1250.2,1.19828858]
[1672831422752,1.6,1250.3,1250.2,1.19828858]
[1672831422965,4.6073,1250.3,1250.2,1.19828858]
[1672831424855,4.6043,1250.3,1250.2,1.19828858]
[1672831425167,8.20301553,1250.3,1250.1,1.19828858]
[1672831425382,1.601,1250.2,1250.1,1.19808075]
[1672831431264,1.601,1250.2,1250.0,3.99780607]
[1672831432213,5.19171553,1250.3,1250.1,4.6063]
[1672831432526,1.593,1250.3,1250.1,11.41897307]
[1672831432730,1.593,1250.3,1250.2,2.5]
[1672831437467,1.593,1250.3,1250.2,3.69712751]
[1672831437785,1.593,1250.3,1250.2,3.69713578]
[1672831439993,1.593,1250.3,1250.2,2.5]
[1672831440417,1.593,1250.3,1250.2,3.69709281]
[1672831440735,1.593,1250.3,1250.2,2.5]
[1672831442727,1.593,1250.3,1250.2,3.69715463]
[1672831443995,1.593,1250.3,1250.2,2.5]
[1672831444299,1.593,1250.3,1250.2,3.69727793]
[1672831445356,1.593,1250.3,1250.2,2.5]
[1672831445671,1.593,1250.3,1250.2,3.69754725]
[1672831462594,1.593,1250.3,1250.2,1.19754725]
[1672831463432,1.601,1250.3,1250.2,1.19754725]
[1672831470788,1.601,1250.3,1250.2,2.99513796]
[1672831471314,1.601,1250.3,1250.2,1.19754725]
[1672831471628,5.19971553,1250.3,1250.2,1.19754725]
[1672831472158,1.601,1250.3,1250.2,2.99513796]
[1672831475513,5.19971553,1250.3,1250.2,2.99513796]
[1672831476459,8.20701553,1250.3,1250.2,1.19754725]
[1672831477303,8.20701553,1250.3,1250.2,2.99513796]
[1672831478036,4.6083,1250.3,1250.2,2.99513796]
[1672831478668,1.601,1250.3,1250.2,2.99513796]
[1672831480868,5.19971553,1250.3,1250.2,2.99513796]
[1672831481395,8.20701553,1250.3,1250.2,2.99513796]
[1672831483508,5.19971553,1250.3,1250.2,2.99513796]
[1672831483720,8.20701553,1250.3,1250.2,2.99513796]
[1672831486033,5.19971553,1250.3,1250.2,2.99513796]
[1672831486244,8.20701553,1250.3,1250.2,2.99513796]
[1672831489813,8.20701553,1250.3,1250.2,1.19754725]
[1672831493799,5.19971553,1250.3,1250.2,1.19754725]
[1672831494019,8.20701553,1250.3,1250.2,1.19754725]
[1672831495813,5.19971553,1250.3,1250.2,1.19754725]
[1672831496023,8.20701553,1250.3,1250.2,1.19754725]
[1672831501700,4.6083,1250.3,1250.2,2.99513796]
[1672831502110,4.6083,1250.3,1250.2,1.19754725]
[1672831502640,4.6083,1250.3,1250.2,2.99513796]
[1672831504531,1.601,1250.3,1250.2,2.99513796]
[1672831506421,5.19971553,1250.3,1250.2,2.99513796]
[1672831506632,5.19971553,1250.3,1250.2,1.19754725]
[1672831507367,1.601,1250.3,1250.2,2.99513796]
[1672831515036,5.19971553,1250.3,1250.2,1.19754725]
[1672831515356,5.19971553,1250.3,1250.2,2.99513796]
[1672831516401,5.19971553,1250.3,1250.2,1.19754725]
[1672831522603,1.601,1250.3,1250.2,2.99513796]
[1672831531232,1.601,1250.3,1250.2,1.19754725]
[1672831531658,5.19971553,1250.3,1250.2,1.19754725]
[1672831532183,5.19971553,1250.3,1250.1,2.99513796]
[1672831532392,1.601,1250.2,1250.1,2.99513796]
[1672831536074,1.601,1250.2,1250.1,1.19754725]
[1672831536281,1.601,1250.2,1250.1,2.99513796]
[1672831553003,4.6083,1250.2,1250.1,2.99513796]
[1672831553209,4.6083,1250.2,1250.1,1.19754725]
[1672831553411,4.5993,1250.2,1250.1,1.19754725]
[1672831553624,1.592,1250.2,1250.1,1.19754725]
[1672831553951,4.5993,1250.2,1250.1,1.19754725]
[1672831554472,1.592,1250.2,1250.1,1.19754725]
[1672831554681,4.5993,1250.2,1250.1,1.19754725]
[1672831558043,1.592,1250.2,1250.1,1.19754725]
[1672831558254,4.5993,1250.2,1250.1,1.19754725]
[1672831560670,1.592,1250.2,1250.1,1.19754725]
[1672831560985,4.5993,1250.2,1250.1,2.99513796]
[1672831562137,1.592,1250.2,1250.1,1.19754725]
[1672831562345,4.5993,1250.2,1250.1,2.99513796]
[1672831562876,1.592,1250.2,1250.1,2.99513796]
[1672831567396,1.592,1250.2,1250.1,1.19754725]
[1672831567712,5.19071553,1250.2,1250.1,1.19754725]
[1672831569289,5.19071553,1250.2,1250.1,2.99513796]
[1672831571812,8.19801553,1250.2,1250.1,2.99513796]
[1672831573704,5.19071553,1250.2,1250.1,2.99513796]
[1672831574013,8.19801553,1250.2,1250.1,2.99513796]
[1672831574856,5.19071553,1250.2,1250.1,2.99513796]
[1672831575066,4.5993,1250.2,1250.1,1.79759071]
[1672831576115,4.5993,1250.2,1250.1,2.99608406]
[1672831576328,8.19801553,1250.2,1250.1,2.99608406]
[1672831577903,5.19071553,1250.2,1250.1,2.99608406]
[1672831578639,8.19801553,1250.2,1250.1,2.99608406]
[1672831582946,4.5993,1250.2,1250.1,2.99608406]
[1672831583362,8.20701553,1250.2,1250.1,2.99608406]
[1672831586307,5.19971553,1250.2,1250.1,2.99608406]
[1672831586522,8.20701553,1250.2,1250.1,2.99608406]
[1672831587686,4.6083,1250.2,1250.1,1.79759071]
[1672831588209,4.6083,1250.2,1250.1,2.99616023]
[1672831588412,4.6083,1250.2,1250.1,1.79759071]
[1672831590938,1.601,1250.2,1250.1,1.79759071]
[1672831593364,4.5983,1250.2,1250.1,1.79759071]
[1672831595782,1.591,1250.2,1250.1,1.79759071]
[1672831595990,4.5983,1250.2,1250.1,1.79759071]
[1672831596834,4.5983,1250.2,1250.1,2.99592207]
[1672831597150,8.19701553,1250.2,1250.1,2.99592207]
[1672831597989,5.18971553,1250.2,1250.1,2.99592207]
[1672831598200,8.19701553,1250.2,1250.1,2.99592207]
[1672831598409,8.19701553,1250.2,1250.1,1.19833136]
[1672831598619,8.19701553,1250.2,1250.1,1.19136865]
[1672831600194,8.19801553,1250.2,1250.1,1.19136865]
[1672831606921,5.19071553,1250.2,1250.1,1.19136865]
[1672831607146,8.19801553,1250.2,1250.1,1.19136865]
[1672831608713,8.19801553,1250.2,1250.1,2.98895936]
[1672831609239,8.19801553,1250.2,1250.1,1.19136865]
[1672831609766,8.19801553,1250.2,1250.1,2.98895936]
[1672831610080,8.19801553,1250.2,1250.1,1.19136865]
[1672831610397,8.19801553,1250.2,1250.1,2.98895936]
[1672831612815,5.19071553,1250.2,1250.1,2.98895936]
[1672831613016,8.19801553,1250.2,1250.1,2.98895936]
[1672831613546,4.5993,1250.2,1250.1,2.98895936]
[1672831615335,8.19801553,1250.2,1250.1,2.98895936]
[1672831616172,4.5993,1250.2,1250.1,2.98895936]
[1672831618068,1.592,1250.2,1250.1,2.98895936]
[1672831618388,4.5993,1250.2,1250.1,2.98895936]
[1672831618907,8.19801553,1250.2,1250.1,2.98895936]
[1672831619111,4.5993,1250.2,1250.1,2.98895936]
[1672831619527,4.5993,1250.2,1250.1,1.19136865]
[1672831619743,8.19801553,1250.2,1250.1,1.19136865]
[1672831621529,5.19071553,1250.2,1250.1,1.19136865]
[1672831621738,8.19801553,1250.2,1250.1,1.19136865]
[1672831626060,5.19071553,1250.2,1250.1,1.19136865]
[1672831626367,8.19801553,1250.2,1250.1,1.19136865]
[1672831627105,5.19071553,1250.2,1250.1,1.19136865]
[1672831627422,8.19801553,1250.2,1250.1,1.19136865]
[1672831628367,5.19071553,1250.2,1250.1,1.19136865]
[1672831628683,8.19801553,1250.2,1250.1,1.19136865]
[1672831629522,8.19801553,1250.2,1250.1,2.98895936]
[1672831629846,4.5993,1250.2,1250.1,2.98895936]
[1672831630155,8.19801553,1250.2,1250.1,2.98895936]
[1672831630367,5.19071553,1250.2,1250.1,2.98895936]
[1672831631209,1.592,1250.2,1250.1,2.98895936]
[1672831631731,5.19071553,1250.2,1250.1,2.98895936]
[1672831631934,5.19071553,1250.2,1250.1,1.19136865]
[1672831632353,5.19071553,1250.2,1250.1,2.98895936]
[1672831632775,5.19071553,1250.2,1250.1,1.19136865]
[1672831634886,5.19071553,1250.2,1250.1,2.98895936]
[1672831635726,8.19801553,1250.2,1250.1,2.98895936]
[1672831637196,5.19071553,1250.2,1250.1,2.98895936]
[1672831637826,8.19801553,1250.2,1250.1,2.98895936]
[1672831640874,5.19071553,1250.2,1250.1,2.98895936]
[1672831641294,8.19801553,1250.2,1250.1,2.98895936]
[1672831643810,5.19071553,1250.2,1250.1,2.98895936]
[1672831644020,8.19801553,1250.2,1250.1,2.98895936]
[1672831651594,5.19071553,1250.2,1250.1,2.98895936]
[1672831651801,8.19519166,1250.2,1250.1,2.98895936]
[1672831657061,5.18789166,1250.2,1250.1,2.98895936]
[1672831657374,8.19519166,1250.2,1250.1,2.98895936]
[1672831657577,5.18789166,1250.2,1250.1,2.98895936]
[1672831657899,8.19519166,1250.2,1250.1,2.98895936]
[1672831658846,5.18789166,1250.2,1250.1,2.98895936]
[1672831659056,8.19519166,1250.2,1250.1,2.98895936]
[1672831661576,8.19519166,1250.2,1250.1,1.19136865]
[1672831661788,8.19519166,1250.2,1250.1,2.98895936]
[1672831663050,5.18789166,1250.2,1250.1,2.98895936]
[1672831663366,8.19519166,1250.2,1250.1,2.98895936]
[1672831665050,5.18789166,1250.2,1250.1,2.98895936]
[1672831665366,8.19519166,1250.2,1250.1,2.98895936]
[1672831666519,5.18789166,1250.2,1250.1,2.98895936]
[1672831666731,8.19519166,1250.2,1250.1,2.98895936]
[1672831667467,5.18789166,1250.2,1250.1,2.98895936]
[1672831667680,8.19519166,1250.2,1250.1,2.98895936]
[1672831669257,8.19519166,1250.2,1250.1,1.19136865]
[1672831669465,8.19519166,1250.2,1250.1,2.98895936]
[1672831669672,8.19519166,1250.2,1250.1,1.19136865]
[1672831673458,8.20601553,1250.2,1250.1,1.19136865]
[1672831674414,8.20601553,1250.2,1250.1,2.98895936]
[1672831676406,5.19871553,1250.2,1250.1,2.98895936]
[1672831676613,8.20601553,1250.2,1250.1,2.98895936]
[1672831677459,5.19871553,1250.2,1250.1,2.98895936]
[1672831677669,8.20601553,1250.2,1250.1,2.98895936]
[1672831679555,5.19871553,1250.2,1250.1,2.98895936]
[1672831679767,8.20601553,1250.2,1250.1,2.98895936]
[1672831680190,5.19871553,1250.2,1250.1,2.98895936]
[1672831680394,8.20601553,1250.2,1250.1,2.98895936]
[1672831680711,5.19871553,1250.2,1250.1,2.98895936]
[1672831681450,8.20601553,1250.2,1250.1,2.98895936]
[1672831682189,5.19871553,1250.2,1250.1,2.98895936]
[1672831682389,8.20601553,1250.2,1250.1,2.98895936]
[1672831683234,5.19871553,1250.2,1250.1,2.98895936]
[1672831683542,8.20601553,1250.2,1250.1,2.98895936]
[1672831683962,8.20601553,1250.2,1250.1,1.19136865]
[1672831684918,5.19871553,1250.2,1250.1,1.19136865]
[1672831685345,8.20601553,1250.2,1250.1,1.19136865]
[1672831686185,5.19871553,1250.2,1250.1,1.19136865]
[1672831686396,8.20601553,1250.2,1250.1,1.19136865]
[1672831687448,8.20601553,1250.2,1250.1,2.98895936]
[1672831687861,8.20601553,1250.2,1250.1,1.19136865]
[1672831688711,5.19871553,1250.2,1250.1,1.19136865]
[1672831689021,8.20601553,1250.2,1250.1,1.19136865]
[1672831689238,8.20601553,1250.2,1250.1,2.98895936]
[1672831691859,5.19871553,1250.2,1250.1,2.98895936]
[1672831692071,8.20601553,1250.2,1250.1,2.98895936]
[1672831692599,5.19871553,1250.2,1250.1,2.98895936]
[1672831692801,8.20601553,1250.2,1250.1,2.98895936]
[1672831693226,4.6073,1250.2,1250.1,1.79759071]
[1672831693430,4.6063,1250.2,1250.1,1.79759071]
[1672831693748,8.20501553,1250.2,1250.1,1.79759071]
[1672831693959,1.599,1250.2,1250.1,1.79759071]
[1672831694382,5.19771553,1250.2,1250.1,1.79759071]
[1672831696913,8.20501553,1250.2,1250.1,1.79759071]
[1672831697757,5.19771553,1250.2,1250.1,1.79759071]
[1672831697962,8.20501553,1250.2,1250.1,1.79759071]
[1672831700071,5.19771553,1250.2,1250.1,1.79759071]
[1672831707862,8.20501553,1250.2,1250.1,1.79759071]
[1672831709432,5.19771553,1250.2,1250.1,1.79759071]
[1672831709648,8.20501553,1250.2,1250.1,1.79759071]
[1672831710059,5.19771553,1250.2,1250.1,1.79759071]
[1672831710592,8.20501553,1250.2,1250.1,1.79759071]
[1672831715944,5.19771553,1250.2,1250.1,1.79759071]
[1672831717106,8.20501553,1250.2,1250.1,1.79759071]
[1672831718684,8.20501553,1250.2,1250.1,2.99588096]
[1672831724575,8.20501553,1250.2,1250.1,2.99210209]
[1672831728887,5.19771553,1250.2,1250.1,2.99210209]
[1672831729194,8.20501553,1250.2,1250.1,2.99210209]
[1672831730879,5.19771553,1250.2,1250.1,2.99210209]
[1672831731194,8.20501553,1250.2,1250.1,2.99210209]
[1672831732035,5.19771553,1250.2,1250.1,2.99210209]
[1672831732347,8.20501553,1250.2,1250.1,2.99210209]
[1672831732550,5.19771553,1250.2,1250.1,2.99210209]
[1672831732758,8.20501553,1250.2,1250.1,2.99210209]
[1672831733923,5.19771553,1250.2,1250.1,2.99210209]
[1672831734133,8.20501553,1250.2,1250.1,2.99210209]
[1672831737611,5.19771553,1250.2,1250.1,2.99210209]
[1672831737816,8.20501553,1250.2,1250.1,1.19829025]
[1672831747061,8.20501553,1250.2,1250.0,3.99780607]
[1672831747271,8.20501553,1250.2,1250.1,1.19795804]
[1672831751061,8.20501553,1250.2,1250.0,3.99780607]
[1672831751274,1.599,1250.2,1250.0,8.41385927]
[1672831751583,1.599,1250.2,1250.0,3.99780607]
[1672831754735,1.599,1250.2,1250.1,1.19773579]
[1672831755052,5.19771553,1250.2,1250.1,1.19773579]
[1672831755256,1.599,1250.2,1250.1,1.19773579]
[1672831755579,5.19771553,1250.2,1250.1,1.19773579]
[1672831756938,1.599,1250.2,1250.0,6.99593133]
[1672831757156,1.599,1250.2,1250.1,1.1977211]
[1672831757676,1.599,1250.2,1250.1,1.19768054]
[1672831758628,5.19771553,1250.2,1250.1,1.19768054]
[1672831761037,1.599,1250.2,1250.1,1.19768054]
[1672831762196,1.599,1250.2,1250.1,1.19763321]
[1672831763455,1.599,1250.2,1250.0,3.99780607]
[1672831765034,1.599,1250.2,1250.1,1.19764487]
[1672831765772,1.599,1250.2,1250.0,3.99780607]
[1672831765981,1.599,1250.2,1250.1,1.19760068]
[1672831766503,1.599,1250.2,1250.0,3.99780607]
[1672831767341,1.599,1250.2,1250.0,5.4157319]
[1672831767555,1.599,1250.2,1250.0,3.99780607]
[1672831769451,1.599,1250.2,1250.1,1.19747247]
[1672831771762,1.599,1250.2,1250.0,3.99780607]
[1672831774701,1.599,1250.2,1250.1,3.81463022]
[1672831776066,1.599,1250.2,1250.1,3.81463449]
[1672831777954,1.601,1250.3,1250.1,7.00510607]
[1672831778171,1.601,1250.3,1250.2,1.19671289]
[1672831778383,1.601,1250.3,1250.1,7.00510607]
[1672831779019,1.601,1250.3,1250.2,1.19669028]
[1672831784574,1.601,1250.3,1250.2,2.9910438]
[1672831784787,1.601,1250.3,1250.2,1.79435352]
[1672831786051,1.601,1250.3,1250.2,2.99036502]
[1672831786886,1.601,1250.3,1250.2,1.79435352]
[1672831788050,1.601,1250.3,1250.2,2.99015733]
[1672831790569,1.601,1250.3,1250.2,1.19580381]
[1672831800238,1.601,1250.3,1250.2,1.79435352]
[1672831800451,1.601,1250.3,1250.2,2.99024602]
[1672831800660,1.601,1250.3,1250.2,1.79435352]
[1672831800863,1.601,1250.3,1250.2,2.99024122]
[1672831801073,1.601,1250.3,1250.2,1.1958877]
[1672831802441,1.601,1250.3,1250.2,2.99024122]
[1672831802652,1.601,1250.3,1250.2,2.99025533]
[1672831802974,1.601,1250.3,1250.2,1.79435352]
[1672831803814,1.601,1250.3,1250.2,2.99026522]
[1672831804235,1.601,1250.3,1250.2,1.1959117]
[1672831804445,1.601,1250.3,1250.2,2.99026522]
[1672831805595,1.601,1250.3,1250.2,1.79435352]
[1672831807493,1.601,1250.3,1250.2,2.99043901]
[1672831810334,1.601,1250.3,1250.2,1.79435352]
[1672831811700,1.601,1250.3,1250.2,2.99094228]
[1672831813386,1.601,1250.3,1250.2,1.79435352]
[1672831816113,1.601,1250.3,1250.2,4.19115959]
[1672831817699,1.601,1250.3,1250.2,1.79435352]
[1672831817898,1.601,1250.3,1250.2,4.19115959]
[1672831821377,1.601,1250.3,1250.2,1.79435352]
[1672831821590,1.601,1250.3,1250.2,4.19260756]
[1672831822746,1.601,1250.3,1250.2,2.39680607]
[1672831823370,1.593,1250.3,1250.2,4.1924725]
[1672831823581,1.593,1250.3,1250.2,2.39680607]
[1672831823794,1.593,1250.3,1250.2,4.19247381]
[1672831825582,1.593,1250.3,1250.2,2.39680607]
[1672831826002,1.593,1250.3,1250.2,4.19258656]
[1672831828734,1.593,1250.3,1250.2,2.39680607]
[1672831829370,1.593,1250.3,1250.2,1.79578785]
[1672831830318,1.593,1250.3,1250.2,4.19259392]
[1672831830522,1.593,1250.3,1250.2,1.79578785]
[1672831835775,1.593,1250.3,1250.2,4.19259392]
[1672831837359,1.593,1250.3,1250.2,1.79578785]
[1672831839780,1.593,1250.3,1250.2,4.19259392]
[1672831844293,1.593,1250.3,1250.2,2.39680607]
[1672831844926,1.593,1250.3,1250.2,4.19293873]
[1672831846712,1.593,1250.3,1250.2,2.39680607]
[1672831852078,1.593,1250.3,1250.2,4.19306195]
[1672831852288,1.593,1250.3,1250.2,2.39680607]
[1672831852499,1.593,1250.3,1250.2,4.19322446]
[1672831852711,1.593,1250.3,1250.2,4.1932094]
[1672831853019,1.593,1250.3,1250.2,2.39680607]
[1672831854808,1.593,1250.3,1250.2,3.81454584]
[1672831855020,1.593,1250.3,1250.2,6.31454584]
[1672831856175,1.593,1250.3,1250.2,6.31185415]
[1672831858380,1.593,1250.3,1250.2,4.89411438]
[1672831858599,1.593,1250.3,1250.2,6.69070918]
[1672831858799,1.593,1250.3,1250.2,4.89411438]
[1672831859012,1.593,1250.3,1250.2,6.69076476]
[1672831860171,1.593,1250.3,1250.2,4.89411438]
[1672831860585,1.593,1250.3,1250.2,6.91578817]
[1672831861006,1.593,1250.3,1250.2,3.91766291]
[1672831869837,1.593,1250.3,1250.2,6.91578817]
[1672831870369,1.593,1250.3,1250.2,3.91766291]
[1672831875940,1.593,1250.3,1250.2,2.5]
[1672831876152,1.593,1250.3,1250.2,3.91771671]
[1672831877092,1.593,1250.3,1250.2,2.5]
[1672831877303,1.593,1250.3,1250.2,3.91771992]
[1672831881409,1.593,1250.3,1250.2,2.5]
[1672831882144,1.593,1250.3,1250.2,3.91770065]
[1672831886143,1.593,1250.3,1250.2,6.31236199]
[1672831888666,1.593,1250.3,1250.2,6.31239821]
[1672831888978,1.593,1250.3,1250.2,4.89466134]
[1672831890242,1.593,1250.3,1250.2,6.31239758]
[1672831890768,1.593,1250.3,1250.2,4.89466134]
[1672831891180,1.593,1250.3,1250.2,6.31240058]
[1672831891607,1.593,1250.3,1250.2,4.89466134]
[1672831891818,1.593,1250.3,1250.2,6.31239652]
[1672831892035,1.593,1250.3,1250.2,4.89466134]
[1672831899283,1.593,1250.3,1250.2,6.31241032]
[1672831899709,1.593,1250.3,1250.2,4.89466134]
[1672831900338,1.593,1250.3,1250.2,6.69207614]
[1672831900541,1.593,1250.3,1250.2,6.31241723]
[1672831900753,1.593,1250.3,1250.2,4.89466134]
[1672831904443,1.593,1250.3,1250.2,6.69180702]
[1672831906230,1.593,1250.3,1250.2,4.89466134]
[1672831906644,1.593,1250.3,1250.2,6.69168822]
[1672831909803,1.593,1250.3,1250.2,4.29702688]
[1672831911801,1.593,1250.3,1250.2,6.69168822]
[1672831912530,1.593,1250.3,1250.2,4.29702688]
[1672831913271,1.593,1250.3,1250.2,1.79702688]
[1672831913481,1.593,1250.3,1250.2,2.99521393]
[1672831914950,4.6003,1250.3,1250.2,2.99521393]
[1672831917055,1.593,1250.3,1250.2,2.99521393]
[1672831917266,4.6003,1250.3,1250.2,2.99521393]
[1672831920520,4.6003,1250.3,1250.2,1.79702688]
[1672831920733,4.6003,1250.3,1250.2,2.99454571]
[1672831921054,4.6003,1250.3,1250.2,2.99454135]
[1672831921682,1.593,1250.3,1250.2,2.99454135]
[1672831922106,1.593,1250.3,1250.2,1.79702688]
[1672831923777,1.593,1250.3,1250.2,2.99459494]
[1672831923988,1.593,1250.3,1250.2,2.99459608]
[1672831925886,1.593,1250.3,1250.2,1.1975692]
[1672831926088,1.593,1250.3,1250.2,2.99459608]
[1672831926299,1.593,1250.3,1250.2,1.1975692]
[1672831926510,1.593,1250.3,1250.2,2.99459608]
[1672831931034,1.593,1250.3,1250.2,1.79702688]
[1672831931349,1.593,1250.3,1250.2,2.9947124]
[1672831931665,1.593,1250.3,1250.2,1.79702688]
[1672831950472,1.593,1250.3,1250.2,2.39466134]
[1672831951836,1.593,1250.3,1250.2,4.19170956]
[1672831953204,1.593,1250.3,1250.2,1.79704822]
[1672831953416,1.6,1250.3,1250.2,1.79704822]
[1672831953626,1.6,1250.3,1250.2,2.99530135]
[1672831953832,1.6,1250.3,1250.2,1.79704822]
[1672831956463,4.6073,1250.3,1250.2,1.79704822]
[1672831957938,1.6,1250.3,1250.2,1.79704822]
[1672831961188,1.599,1250.3,1250.2,2.9953447]
[1672831961396,5.19771553,1250.3,1250.2,2.9953447]
[1672831961606,1.599,1250.3,1250.2,2.9953447]
[1672831961817,1.599,1250.3,1250.2,2.99532218]
[1672831962027,1.599,1250.3,1250.2,2.99532503]
[1672831962552,1.599,1250.3,1250.2,1.79704822]
[1672831964557,1.599,1250.3,1250.2,1.79718815]
[1672831965500,1.599,1250.3,1250.2,2.39466134]
[1672831965702,1.599,1250.3,1250.2,3.81239772]
[1672831965912,1.599,1250.3,1250.2,2.39466134]
[1672831966126,1.599,1250.3,1250.2,4.19182211]
[1672831966336,1.599,1250.3,1250.2,2.39466134]
[1672831967618,1.599,1250.3,1250.2,4.1918116]
[1672831969075,1.599,1250.3,1250.2,2.39466134]
[1672831969811,1.599,1250.3,1250.2,1.7972856]
[1672831971282,1.599,1250.3,1250.2,4.19194694]
[1672831972023,1.599,1250.3,1250.2,1.7972856]
[1672831972538,4.6063,1250.3,1250.2,1.7972856]
[1672831972749,1.599,1250.3,1250.2,1.7972856]
[1672831972961,4.6063,1250.3,1250.2,1.7972856]
[1672831973380,1.599,1250.3,1250.2,1.7972856]
[1672831973596,4.6063,1250.3,1250.2,1.7972856]
[1672831976843,4.6063,1250.3,1250.2,2.99555058]
[1672831977166,1.599,1250.3,1250.2,2.99555058]
[1672831977479,4.6063,1250.3,1250.2,2.99555058]
[1672831977912,4.6063,1250.3,1250.2,1.7972856]
[1672831978222,4.6063,1250.3,1250.2,2.99554049]
[1672831979699,1.599,1250.3,1250.2,2.99554049]
[1672831979899,4.6063,1250.3,1250.2,2.99554049]
[1672831980110,8.20501553,1250.3,1250.2,2.99554049]
[1672831982956,5.19771553,1250.3,1250.2,2.99554049]
[1672831983167,8.20501553,1250.3,1250.2,2.99554049]
[1672831984216,4.6063,1250.3,1250.2,2.99554049]
[1672831986424,4.6063,1250.3,1250.2,1.7972856]
[1672831986946,1.599,1250.3,1250.2,1.7972856]
[1672831987158,1.599,1250.3,1250.2,2.99534754]
[1672831987998,4.6063,1250.3,1250.2,2.99534754]
[1672831990624,4.6063,1250.3,1250.2,1.7972856]
[1672831991569,1.599,1250.3,1250.2,1.7972856]
[1672831995145,1.599,1250.3,1250.2,2.99544178]
[1672831995875,1.599,1250.3,1250.2,1.7972856]
[1672831996400,1.599,1250.3,1250.2,2.99543303]
[1672831996604,1.599,1250.3,1250.2,1.7972856]
[1672831996815,1.599,1250.3,1250.2,2.99543279]
[1672831997133,1.599,1250.3,1250.2,2.99542752]
[1672831998076,1.599,1250.3,1250.2,1.7972856]
[1672831998282,1.599,1250.3,1250.2,2.99543796]
[1672831998499,1.599,1250.3,1250.2,1.7972856]
[1672831999021,5.19771553,1250.3,1250.2,2.99543094]
[1672831999235,5.19771553,1250.3,1250.2,1.19814534]
[1672831999446,1.599,1250.3,1250.2,1.19814534]
[1672831999652,1.599,1250.3,1250.2,1.19814754]
[1672831999864,1.599,1250.3,1250.2,3.69814754]
[1672832000277,5.19771553,1250.3,1250.2,3.69814754]
[1672832000702,5.19771553,1250.3,1250.2,1.19814754]
[1672832001238,1.599,1250.3,1250.2,1.19814754]
[1672832001650,1.599,1250.3,1250.1,4.89466134]
[1672832001859,16.19301553,1250.4,1250.2,1.19811219]
[1672832002069,5.18971553,1250.3,1250.2,1.19811219]
[1672832002810,1.591,1250.3,1250.2,1.19811219]
[1672832003224,1.591,1250.3,1250.1,4.89466134]
[1672832003436,1.593,1250.2,1250.1,4.89466134]
[1672832003751,1.593,1250.2,1250.1,6.31247272]
[1672832007542,1.593,1250.2,1250.1,3.81247272]
[1672832007749,1.593,1250.2,1250.1,2.39466134]
[1672832008173,1.593,1250.2,1250.1,3.81251326]
[1672832011325,1.593,1250.2,1250.1,2.39466134]
[1672832012902,1.593,1250.2,1250.1,3.81252117]
[1672832013109,1.593,1250.2,1250.1,2.39466134]
[1672832014368,1.593,1250.2,1250.1,3.81249448]
[1672832014779,1.593,1250.2,1250.1,2.39466134]
[1672832014994,1.593,1250.2,1250.1,3.81251257]
[1672832016152,1.593,1250.2,1250.1,2.39466134]
[1672832020568,1.593,1250.2,1250.1,3.81249968]
[1672832020985,1.593,1250.2,1250.1,2.39466134]
[1672832024254,1.593,1250.2,1250.1,3.81251155]
[1672832024453,1.593,1250.2,1250.1,2.39466134]
[1672832028561,1.593,1250.2,1250.1,3.81251334]
[1672832029298,1.593,1250.2,1250.1,2.39466134]
[1672832030770,1.593,1250.2,1250.0,4.89466134]
[1672832031091,1.593,1250.2,1250.1,1.19851623]
[1672832031288,1.593,1250.2,1250.0,4.89466134]
[1672832032454,4.6003,1250.2,1250.0,4.89466134]
[1672832032661,4.6003,1250.2,1250.1,1.19834576]
[1672832033926,4.6003,1250.2,1250.0,4.89466134]
[1672832034445,4.6003,1250.2,1250.1,1.19822822]
[1672832035396,1.593,1250.2,1250.1,1.19822822]
[1672832035608,4.6003,1250.2,1250.1,1.19822822]
[1672832035816,1.593,1250.2,1250.1,1.19822822]
[1672832036019,4.6003,1250.2,1250.1,2.39466134]
[1672832037392,1.593,1250.2,1250.1,2.39466134]
[1672832059172,1.593,1250.2,1250.1,4.19139441]
[1672832059686,1.593,1250.2,1250.1,2.39466134]
[1672832060959,1.593,1250.2,1250.1,4.19130392]
[1672832061274,1.593,1250.2,1250.1,2.39466134]
[1672832062320,1.593,1250.2,1250.1,4.19129791]
[1672832062530,1.593,1250.2,1250.1,2.39466134]
[1672832065165,1.593,1250.2,1250.1,4.19130212]
[1672832065380,1.593,1250.2,1250.1,2.39466134]
[1672832068417,1.593,1250.2,1250.1,4.19125016]
[1672832068839,1.593,1250.2,1250.1,4.19125926]
[1672832069260,1.593,1250.2,1250.1,3.81249242]
[1672832069788,1.593,1250.2,1250.1,2.39466134]
[1672832071674,1.593,1250.2,1250.1,3.81250263]
[1672832071885,1.593,1250.2,1250.1,2.39466134]
[1672832074309,1.593,1250.2,1250.1,3.8125245]
[1672832075041,1.593,1250.2,1250.1,2.39466134]
[1672832075352,1.593,1250.2,1250.1,3.81249933]
[1672832078192,1.593,1250.2,1250.1,2.39466134]
[1672832078603,1.593,1250.2,1250.1,3.8125108]
[1672832079980,1.593,1250.2,1250.1,2.39466134]
[1672832080191,1.593,1250.2,1250.1,3.8125108]
[1672832081239,1.593,1250.2,1250.1,2.39466134]
[1672832081452,1.593,1250.2,1250.1,3.81252494]
[1672832082716,1.593,1250.2,1250.1,2.39466134]
[1672832082926,1.593,1250.2,1250.1,3.81252494]
[1672832083661,1.593,1250.2,1250.1,2.39466134]
[1672832084295,1.593,1250.2,1250.1,3.81252305]